bitfinex-derivatives/quotes_ETHF0:USTF0_20250830
["timestamp","ask_amount","ask_price","bid_price","bid_amount"]
[1756519108827,0.41993,4285.8,4285.7,0.403]
[1756519109421,0.4199,4286.1,4285.7,6.3933]
[1756519109626,0.4199,4286.1,4285.7,0.403]
[1756519109928,0.41992,4285.9,4285.7,0.403]
[1756519110628,0.41992,4285.9,4285.8,1.9903]
[1756519111529,0.41992,4285.9,4285.7,0.403]
[1756519111929,0.41992,4285.9,4285.7,2.3933]
[1756519112235,0.41992,4285.9,4285.7,0.403]
[1756519113040,0.4426,4285.8,4285.7,0.403]
[1756519113735,1.0110346,4285.8,4285.7,0.403]
[1756519114629,5.0110346,4285.8,4284.9,33.634]
[1756519114831,0.39,4286.5,4285.2,0.389]
[1756519114832,0.5684346,4285.7,4285.2,0.389]
[1756519115135,3.6504,4285.3,4285.2,0.389]
[1756519115335,3.6504,4285.3,4284.2,1.9903]
[1756519115336,4.2188346,4285.3,4284.6,0.388]
[1756519115531,0.5684346,4285.2,4284.6,0.388]
[1756519115728,3.6504,4284.7,4283.6,1.9903]
[1756519116033,0.4426,4284.5,4283.7,0.387]
[1756519116236,0.5684346,4284.4,4283.7,0.387]
[1756519116436,0.5684346,4284.3,4283.7,0.387]
[1756519116733,0.56812264,4284.2,4283.7,0.387]
[1756519116934,1.13107402,4284.1,4283.7,0.387]
[1756519117138,0.563,4284.1,4283.7,0.387]
[1756519117439,0.563,4284.1,4283.7,2.2939]
[1756519117934,3.2078,4284.7,4283.7,2.2939]
[1756519118132,0.56798287,4284.6,4283.7,2.2939]
[1756519118334,3.2078,4284.7,4283.7,2.2939]
[1756519118335,0.56798287,4284.5,4283.7,2.2939]
[1756519118538,0.56798287,4284.4,4283.7,2.2939]
[1756519118832,0.56798287,4284.3,4283.7,2.2939]
[1756519119034,0.56798287,4284.2,4283.8,1.9069]
[1756519119241,3.7708,4285.5,4283.8,1.9069]
[1756519119434,0.56797249,4285.4,4283.8,1.9069]
[1756519119737,0.56797249,4285.4,4283.7,0.387]
[1756519119738,0.56797249,4285.3,4284.1,1.9069]
[1756519119938,0.56797249,4285.2,4284.2,0.384]
[1756519120139,0.56797249,4285.1,4284.2,0.384]
[1756519120443,0.56797249,4285.0,4284.3,1.9069]
[1756519120739,3.7708,4285.5,4284.3,1.9069]
[1756519120940,3.2078,4284.5,4284.3,1.9069]
[1756519121842,0.563,4284.4,4284.2,0.384]
[1756519122043,0.563,4284.3,4284.2,0.384]
[1756519122741,1.12378249,4284.3,4284.2,0.384]
[1756519122933,1.12378249,4284.3,4283.4,33.615]
[1756519123138,0.56078249,4284.2,4283.7,3.5888]
[1756519123442,0.56078249,4284.2,4283.9,1.9069]
[1756519123638,0.56078249,4284.2,4283.8,1.9069]
[1756519123836,0.56078249,4284.2,4284.0,1.9069]
[1756519124034,0.563,4284.8,4284.0,1.9069]
[1756519124236,0.5608935,4284.7,4284.0,1.9069]
[1756519124438,0.5608935,4284.6,4284.0,1.9069]
[1756519124641,0.5608935,4284.5,4283.8,1.9069]
[1756519124836,0.5608935,4284.4,4283.8,1.9069]
[1756519125031,0.5608935,4284.3,4283.7,3.5888]
[1756519125347,0.5608935,4284.2,4284.0,1.9069]
[1756519125635,3.2078,4285.0,4284.2,1.9069]
[1756519125843,0.5610124,4284.9,4284.2,1.9069]
[1756519126035,0.5610124,4284.8,4284.2,1.9069]
[1756519126240,3.2078,4285.0,4284.2,1.9069]
[1756519126441,0.5611547,4284.9,4284.2,1.9069]
[1756519126743,0.5611547,4284.8,4284.2,1.9069]
[1756519126943,3.2078,4285.0,4284.2,1.9069]
[1756519127835,3.2078,4285.0,4284.2,5.1147]
[1756519128038,3.2078,4285.0,4284.3,1.9069]
[1756519129442,3.2078,4285.0,4284.3,0.65346]
[1756519129642,3.2078,4285.0,4284.4,1.9069]
[1756519129850,3.2078,4285.0,4284.2,3.2078]
[1756519129851,3.2078,4285.0,4284.6,1.9069]
[1756519130048,3.2078,4285.7,4284.6,1.9069]
[1756519130344,3.2078,4285.7,4284.7,3.2078]
[1756519130641,3.2078,4285.7,4284.8,1.9069]
[1756519130848,3.2078,4285.7,4284.9,0.373]
[1756519131646,0.563,4285.6,4284.9,0.373]
[1756519132246,3.2078,4285.7,4284.9,0.373]
[1756519132247,0.563,4285.0,4284.9,0.373]
[1756519133846,4.563,4285.0,4283.7,5.1147]
[1756519134047,0.563,4285.0,4283.8,0.37]
[1756519134240,3.2078,4284.6,4283.9,1.9069]
[1756519135043,3.7708,4284.6,4283.9,1.9069]
[1756519137046,3.7708,4284.6,4283.9,5.1147]
[1756519137340,0.4201,4284.1,4283.9,5.1147]
[1756519137545,0.4201,4284.1,4284.0,1.9069]
[1756519139543,0.4201,4284.1,4283.2,2.08388935]
[1756519139544,3.2078,4283.5,4277.5,4.15025622]
[1756519139750,3.2078,4283.5,4274.1,12.59201014]
[1756519139751,3.2078,4279.4,4275.5,3.2078]
[1756519139951,1.9069,4279.2,4275.0,0.423]
[1756519140145,1.9069,4279.2,4274.1,0.10762374]
[1756519140146,1.19714403,4275.6,4275.1,0.087]
[1756519140355,1.99539125,4275.5,4274.1,0.10762374]
[1756519140552,1.9069,4275.3,4274.2,1.04044249]
[1756519140744,0.79824722,4275.2,4274.3,0.61744249]
[1756519140943,0.79824722,4275.1,4274.3,0.61744249]
[1756519141153,1.99539125,4275.0,4274.4,0.61744249]
[1756519141351,1.19714403,4274.7,4274.3,0.61744249]
[1756519141546,0.79824722,4274.6,4274.4,0.61744249]
[1756519141751,3.76989878,4274.5,4274.3,0.61744249]
[1756519142052,2.75657729,4274.4,4274.3,0.98979598]
[1756519142354,2.75657729,4274.4,4274.3,0.426]
[1756519142756,0.84967729,4274.4,4274.3,0.426]
[1756519143055,0.56209878,4274.4,4274.3,6.3319]
[1756519143453,2.21800402,4274.5,4274.4,2.52434249]
[1756519143648,1.59283576,4274.9,4274.4,5.04144249]
[1756519143849,3.2078,4274.5,4274.4,2.3309]
[1756519144051,1.61496424,4274.7,4274.4,34.071]
[1756519144251,1.59283576,4275.0,4274.4,33.647]
[1756519144553,1.59283576,4275.0,4274.6,1.9069]
[1756519144854,1.59283576,4274.9,4274.7,1.9069]
[1756519145053,1.59283576,4274.9,4274.8,2.3299]
[1756519145556,3.2078,4275.0,4274.8,2.3299]
[1756519146156,3.2078,4275.0,4274.9,0.423]
[1756519146357,3.62879,4275.0,4274.9,0.423]
[1756519146557,3.2078,4275.0,4274.8,1.06640117]
[1756519146753,3.62879,4275.0,4274.4,33.647]
[1756519147057,1.99524005,4275.7,4274.5,7.6288]
[1756519147058,3.2078,4275.7,4274.5,7.6288]
[1756519147260,3.2078,4275.7,4274.5,3.6288]
[1756519147559,3.2078,4275.7,4274.6,0.421]
[1756519148357,3.2078,4275.7,4274.5,3.2078]
[1756519148555,2.3779,4276.3,4275.1,3.2078]
[1756519148752,2.3779,4276.3,4274.7,0.98457296]
[1756519148753,2.3779,4276.3,4275.2,0.42]
[1756519148953,3.2078,4275.7,4275.2,0.42]
[1756519149155,2.3779,4276.3,4275.2,0.42]
[1756519149449,3.2078,4275.7,4275.3,0.011]
[1756519149656,3.2078,4275.7,4275.4,0.419]
[1756519149959,3.2078,4275.7,4275.5,0.011]
[1756519150158,3.2078,4275.8,4275.5,0.011]
[1756519150558,3.2078,4275.8,4275.6,0.419]
[1756519150856,2.3668487,4276.3,4275.6,0.419]
[1756519151056,3.2078,4275.9,4275.6,0.43]
[1756519151854,3.2078,4275.9,4275.6,0.011]
[1756519152056,3.2078,4275.9,4275.7,0.416]
[1756519152363,3.2078,4275.9,4275.8,0.416]
[1756519152555,3.2078,4275.9,4275.8,0.427]
[1756519152861,2.3779,4276.5,4275.8,4.427]
[1756519153062,3.2078,4276.4,4275.8,0.427]
[1756519153364,5.5857,4277.1,4275.8,0.427]
[1756519153561,5.5857,4277.1,4275.9,0.415]
[1756519153862,5.5857,4277.1,4276.0,33.673]
[1756519154064,2.3779,4276.3,4276.0,34.088]
[1756519154265,2.3779,4276.4,4276.0,33.673]
[1756519154556,2.3779,4276.4,4276.1,0.414]
[1756519154763,3.2078,4276.5,4274.5,3.2078]
[1756519154954,0.1165,4277.0,4267.4,3.2078]
[1756519154955,3.866,4271.5,4267.4,3.2078]
[1756519155158,3.866,4271.5,4266.7,3.91484699]
[1756519155159,3.2078,4267.8,4266.7,3.91484699]
[1756519155462,2.3779,4269.4,4266.8,33.675]
[1756519155661,2.3779,4269.2,4266.8,33.675]
[1756519155857,2.25781576,4269.2,4267.0,2.4038]
[1756519156258,2.25781576,4269.2,4267.1,0.455]
[1756519156456,2.25781576,4269.2,4267.2,2.4038]
[1756519156656,3.2078,4267.4,4267.3,0.455]
[1756519156863,3.2078,4269.0,4267.3,3.2078]
[1756519157056,3.2078,4268.3,4267.5,2.2387]
[1756519157261,1.56813216,4271.2,4266.8,33.675]
[1756519157262,3.2078,4267.6,4266.8,33.675]
[1756519157562,3.2078,4268.2,4267.0,2.2387]
[1756519157751,3.2078,4268.2,4266.9,0.455]
[1756519157752,3.2078,4268.2,4267.3,2.2387]
[1756519157956,3.2078,4268.2,4267.4,0.455]
[1756519158160,2.3779,4269.4,4267.5,2.2387]
[1756519158355,2.3779,4267.6,4266.0,2.4038]
[1756519158557,3.2078,4268.7,4267.5,3.2078]
[1756519158753,5.5857,4269.2,4267.6,2.4038]
[1756519158966,3.2078,4268.6,4267.6,2.4038]
[1756519159259,3.2078,4268.6,4267.7,0.456]
[1756519159763,2.3779,4268.7,4267.8,4.455]
[1756519159955,2.3779,4268.7,4267.5,6.4038]
[1756519160157,2.3779,4268.7,4267.6,0.454]
[1756519160357,2.3779,4268.7,4267.5,5.38992877]
[1756519160657,2.3779,4269.2,4266.8,2.4038]
[1756519160861,2.3779,4268.4,4267.0,2.4038]
[1756519161062,3.2078,4268.5,4267.2,2.4038]
[1756519161263,5.5857,4269.0,4267.3,0.454]
[1756519161456,5.5857,4269.0,4267.0,3.2078]
[1756519161457,3.2078,4268.5,4267.4,2.8578]
[1756519161765,5.5857,4269.0,4267.6,3.2078]
[1756519162261,3.2078,4269.0,4267.7,2.8255]
[1756519162465,3.2078,4269.5,4268.7,2.4038]
[1756519162655,3.2078,4269.5,4268.8,34.164]
[1756519162864,3.2078,4269.5,4268.8,37.711]
[1756519163162,3.2078,4270.0,4269.2,3.2078]
[1756519163467,2.3779,4269.9,4269.3,0.452]
[1756519163668,3.2078,4269.4,4266.7,3.21180493]
[1756519163860,3.2078,4265.8,4263.0,3.2078]
[1756519164056,2.809,4269.3,4262.0,3.2078]
[1756519164057,3.2078,4263.4,4262.0,3.2078]
[1756519164269,3.2078,4262.9,4261.5,3.2078]
[1756519164562,3.2078,4263.0,4261.3,3.2078]
[1756519164760,3.2078,4262.5,4261.9,33.716]
[1756519164956,3.2078,4262.5,4262.2,0.468]
[1756519165161,3.2078,4262.5,4261.3,3.2078]
[1756519165360,3.2078,4262.5,4261.7,0.468]
[1756519165562,3.2078,4262.5,4262.4,3.21180493]
[1756519165758,3.2078,4262.8,4262.4,3.67980493]
[1756519165960,3.2078,4263.3,4261.3,2.4038]
[1756519166164,3.2078,4263.3,4261.5,0.42231]
[1756519166372,3.2078,4263.3,4263.2,3.21180493]
[1756519166668,3.2078,4264.6,4263.2,0.00400493]
[1756519166865,3.2078,4264.1,4263.3,0.468]
[1756519167267,3.2078,4263.4,4262.1,1.59543892]
[1756519167468,33.734,4265.7,4262.1,1.59543892]
[1756519167469,3.2078,4262.3,4262.1,1.59543892]
[1756519167862,4.76080131,4262.2,4261.0,0.00442631]
[1756519168060,3.2078,4261.8,4261.0,0.00442631]
[1756519168264,3.2078,4261.2,4261.0,0.00442631]
[1756519168565,0.87810131,4261.7,4261.1,0.468]
[1756519168566,0.1173,4261.7,4261.1,0.468]
[1756519168770,0.1173,4261.7,4261.5,2.4038]
[1756519169165,0.1173,4261.7,4261.4,0.23391812]
[1756519169370,0.1173,4261.7,4261.5,0.468]
[1756519169670,0.1173,4261.7,4261.6,2.8718]
[1756519169872,0.1173,4261.7,4261.6,3.10571812]
[1756519170072,0.1173,4261.7,4261.6,6.63771812]
[1756519170272,0.1173,4261.7,4261.6,7.10571812]
[1756519170769,3.2078,4264.2,4262.1,0.42225]
[1756519170964,0.76054519,4264.1,4263.0,3.2078]
[1756519171167,3.2078,4264.2,4263.0,3.2078]
[1756519171366,3.2078,4263.8,4263.0,3.2078]
[1756519171572,3.2078,4263.5,4263.0,3.2078]
[1756519171775,2.4945,4263.7,4262.2,33.755]
[1756519171976,3.2078,4263.1,4262.3,0.468]
[1756519172174,3.2078,4263.1,4262.4,0.468]
[1756519172370,3.2078,4263.1,4262.2,33.755]
[1756519172573,3.2078,4263.1,4262.3,0.468]
[1756519172875,5.7023,4263.7,4262.3,0.468]
[1756519173174,5.7023,4263.7,4262.4,0.468]
[1756519173175,3.3244,4263.7,4262.4,0.468]
[1756519173475,0.1166,4263.7,4263.1,2.4038]
[1756519173670,0.1166,4263.7,4263.3,2.4038]
[1756519173876,0.1166,4263.7,4263.6,2.4038]
[1756519174073,2.3779,4263.6,4262.2,33.755]
[1756519174279,3.2078,4263.3,4262.3,2.8718]
[1756519174777,3.2078,4263.3,4262.2,33.755]
[1756519174778,3.2078,4263.3,4262.4,0.467]
[1756519174975,0.1166,4263.2,4263.0,2.4038]
[1756519175174,0.1166,4263.2,4263.1,0.467]
[1756519175470,0.1166,4263.2,4262.4,2.4038]
[1756519175672,4.1166,4263.2,4262.4,2.4038]
[1756519175878,0.1166,4263.2,4262.4,2.4038]
[1756519176075,4.0,4262.5,4262.2,33.755]
[1756519176273,4.0,4262.3,4262.2,29.1776]
[1756519176473,4.0,4262.3,4262.2,29.6426]
[1756519177176,4.0,4262.3,4262.2,0.465]
[1756519177380,4.0,4262.3,4262.2,0.464]
[1756519177777,4.75378179,4262.3,4260.8,33.769]
[1756519177985,3.2078,4261.1,4260.1,3.2078]
[1756519178282,3.2078,4260.6,4260.3,2.385]
[1756519178588,1.05545,4262.8,4260.3,2.385]
[1756519178589,3.2078,4261.1,4260.3,2.385]
[1756519178886,0.42235,4261.0,4260.1,3.6698]
[1756519179181,3.2078,4260.6,4260.1,3.6698]
[1756519179583,0.75374109,4260.5,4259.6,3.6758234]
[1756519179885,3.2078,4260.6,4259.6,3.6758234]
[1756519180076,0.75457319,4260.5,4259.6,3.6758234]
[1756519180272,0.75448291,4260.4,4259.7,0.461]
[1756519180483,3.2078,4261.1,4259.7,0.461]
[1756519180683,10.55493,4262.7,4259.7,0.461]
[1756519180684,3.2078,4260.6,4259.7,0.461]
[1756519180880,3.2078,4261.1,4259.7,0.461]
[1756519181089,3.2078,4261.8,4260.7,3.2078]
[1756519181384,3.2078,4262.3,4261.5,2.385]
[1756519181582,3.2078,4263.5,4262.2,3.2078]
[1756519181881,3.2078,4263.5,4261.6,0.461]
[1756519181882,0.1144,4265.2,4262.9,2.385]
[1756519182081,3.2078,4265.0,4263.6,5.5928]
[1756519182277,1.56813216,4266.8,4263.0,34.245]
[1756519182278,3.2078,4264.8,4263.7,0.46]
[1756519182481,0.1144,4264.6,4263.8,0.46]
[1756519182686,0.46,4265.3,4263.8,0.46]
[1756519182687,3.2078,4264.0,4263.8,0.46]
[1756519182885,0.1144,4263.9,4263.0,33.785]
[1756519183184,0.1144,4263.3,4262.6,0.459]
[1756519183384,3.3222,4262.9,4262.6,0.459]
[1756519183585,0.71769683,4262.8,4262.2,0.459]
[1756519183785,3.3222,4262.3,4262.2,0.459]
[1756519183982,0.71769683,4262.3,4262.2,2.844]
[1756519184486,0.71769683,4262.3,4262.2,2.61520174]
[1756519184687,3.2078,4263.1,4262.2,6.61520174]
[1756519184884,0.69877321,4263.0,4262.2,0.23020174]
[1756519185084,3.2078,4262.4,4262.2,0.457]
[1756519185288,0.69877321,4262.3,4262.2,0.457]
[1756519185792,5.98510331,4262.3,4261.3,34.241]
[1756519185983,3.2078,4261.4,4261.3,34.241]
[1756519186185,3.90657321,4261.4,4261.3,0.456]
[1756519186580,1.56813216,4262.4,4261.3,0.456]
[1756519186581,3.2078,4262.4,4261.3,6.841]
[1756519186793,0.69471284,4262.3,4261.3,39.8368]
[1756519186995,3.63002,4262.4,4261.3,39.8368]
[1756519187390,3.2078,4262.4,4261.3,37.4518]
[1756519187592,0.4222,4262.6,4261.6,2.385]
[1756519187887,3.2078,4263.0,4262.3,3.2078]
[1756519188094,1.1719301,4264.0,4263.0,2.385]
[1756519188288,3.2078,4264.3,4263.1,33.79]
[1756519188487,3.2078,4263.4,4263.2,2.385]
[1756519188688,0.42198,4264.8,4263.4,2.385]
[1756519188895,1.1719301,4265.6,4264.1,3.2078]
[1756519189086,0.42188,4265.9,4265.1,3.2078]
[1756519189289,0.42186,4266.0,4265.2,0.453]
[1756519189496,0.42189,4265.8,4265.2,0.453]
[1756519189698,3.62965,4266.1,4265.2,0.453]
[1756519189898,3.2078,4266.1,4265.2,0.453]
[1756519190191,10.54316,4267.4,4265.2,0.453]
[1756519190192,3.2078,4267.0,4266.0,3.2078]
[1756519190391,2.5081,4267.2,4266.1,0.452]
[1756519190591,0.42169,4267.7,4266.7,3.2078]
[1756519190894,2.5081,4267.5,4266.8,0.451]
[1756519191091,0.42173,4267.3,4266.8,0.451]
[1756519191286,2.5081,4267.5,4266.8,0.451]
[1756519191590,3.42024228,4267.4,4265.5,2.385]
[1756519191791,3.2078,4266.9,4265.6,0.45]
[1756519191991,0.42186,4266.0,4265.7,0.449]
[1756519192488,5.7159,4266.4,4265.7,0.449]
[1756519192695,2.92994,4266.2,4265.7,0.449]
[1756519192989,1.56813216,4267.0,4265.7,0.449]
[1756519192990,0.42179,4266.7,4265.8,2.385]
[1756519193296,3.2078,4266.6,4265.8,2.385]
[1756519193499,4.3797301,4267.2,4266.4,2.385]
[1756519193691,0.21335242,4267.1,4266.5,0.447]
[1756519193895,0.21335242,4267.0,4266.6,0.447]
[1756519194196,0.21335242,4266.9,4266.7,0.447]
[1756519194395,0.21335242,4266.8,4266.7,2.832]
[1756519194596,3.62954,4267.2,4266.7,2.832]
[1756519194894,1.1719301,4267.6,4266.8,2.385]
[1756519194895,0.21313243,4267.1,4266.8,2.385]
[1756519195091,0.21313243,4267.0,4266.8,2.385]
[1756519195297,3.2078,4267.2,4266.8,2.385]
[1756519195485,0.21297364,4267.1,4266.8,2.385]
[1756519195686,0.21297364,4267.0,4266.7,0.447]
[1756519195998,0.42173,4267.3,4266.9,2.385]
[1756519196193,0.42166,4268.0,4267.1,2.385]
[1756519196393,2.5081,4268.3,4267.1,2.385]
[1756519196598,0.42175,4267.1,4267.0,33.776]
[1756519196890,3.62955,4267.1,4267.0,34.22]
[1756519197100,6.13765,4267.1,4267.0,34.22]
[1756519197295,3.2078,4267.1,4267.0,34.22]
[1756519198798,3.84339683,4267.1,4267.0,34.22]
[1756519199097,3.84339683,4267.1,4267.0,36.605]
[1756519199296,3.2078,4267.1,4267.0,34.22]
[1756519199494,6.35131358,4267.1,4267.0,34.22]
[1756519199895,3.84321358,4267.1,4267.0,34.22]
[1756519200295,3.2078,4267.6,4267.0,36.605]
[1756519200503,0.42173,4267.3,4267.1,2.385]
[1756519200692,3.2078,4268.1,4267.1,2.385]
[1756519200897,0.42169,4267.7,4267.1,2.385]
[1756519201095,3.2078,4268.3,4267.1,2.385]
[1756519201397,3.2078,4268.3,4267.0,34.22]
[1756519201398,0.63553597,4268.2,4267.4,2.385]
[1756519201592,3.2078,4268.6,4267.6,2.385]
[1756519201789,0.63538118,4268.5,4267.5,0.438]
[1756519201995,0.42165,4268.1,4267.5,2.823]
[1756519202296,3.2078,4268.6,4267.5,2.823]
[1756519202502,3.2078,4269.1,4268.1,3.2078]
[1756519202698,3.2078,4269.1,4268.2,2.822]
[1756519202897,0.42165,4268.1,4267.4,3.2078]
[1756519203104,3.2078,4268.4,4267.8,2.385]
[1756519203303,3.2078,4269.2,4268.4,2.385]
[1756519203491,3.2078,4269.7,4268.6,2.385]
[1756519203695,3.2078,4269.7,4269.1,2.385]
[1756519203896,3.2078,4269.7,4269.3,2.385]
[1756519204100,3.2078,4269.7,4269.0,3.2078]
[1756519204306,0.42151,4269.5,4269.1,0.435]
[1756519204500,0.42151,4269.5,4269.2,2.385]
[1756519204802,0.42145,4270.1,4269.4,3.2078]
[1756519205006,2.32145,4270.2,4269.5,2.385]
[1756519205207,0.42149,4269.8,4269.5,2.385]
[1756519205406,2.32145,4270.2,4269.6,0.434]
[1756519205603,1.9,4270.2,4269.6,0.434]
[1756519205799,0.42148,4269.9,4269.6,0.434]
[1756519206003,1.9,4270.2,4269.0,3.2078]
[1756519206206,2.5081,4270.0,4269.1,0.433]
[1756519206506,0.42154,4269.3,4269.2,0.433]
[1756519206708,0.42157,4268.9,4268.7,33.765]
[1756519206900,5.6739,4268.8,4268.1,2.385]
[1756519207206,0.42163,4268.3,4268.1,2.385]
[1756519207409,0.4217,4267.6,4267.2,33.757]
[1756519207604,0.4217,4267.6,4267.4,2.4971]
[1756519207807,0.42167,4267.9,4267.5,2.9281]
[1756519208113,0.42169,4267.7,4267.6,2.4971]
[1756519208301,3.2078,4268.3,4267.6,2.4971]
[1756519208501,3.2078,4268.3,4267.8,3.2078]
[1756519208701,3.2078,4268.3,4268.0,2.4971]
[1756519208903,3.2078,4268.3,4267.9,4.43]
[1756519209098,0.42165,4268.1,4268.0,0.43]
[1756519209306,0.42165,4268.1,4262.7,0.64484083]
[1756519209307,0.9083,4266.3,4262.7,0.64484083]
[1756519209507,0.9083,4266.3,4259.4,3.2078]
[1756519209508,3.2078,4262.8,4259.4,3.2078]
[1756519209704,3.2078,4262.8,4257.2,33.755]
[1756519209705,2.4661,4261.2,4259.6,0.45]
[1756519210007,0.63216882,4261.1,4259.6,0.45]
[1756519210204,0.63216882,4261.0,4259.6,0.45]
[1756519210403,2.4661,4262.1,4261.1,3.0296]
[1756519210710,0.95513057,4262.0,4261.8,3.0296]
[1756519211008,0.32277633,4261.9,4260.6,0.451]
[1756519211211,2.4661,4263.0,4260.7,0.451]
[1756519211212,3.2078,4261.7,4260.7,0.451]
[1756519211402,3.53057633,4261.6,4260.7,0.451]
[1756519211602,3.2078,4263.8,4262.2,2.70671028]
[1756519211813,2.4661,4263.6,4262.3,0.451]
[1756519212006,2.4661,4263.6,4262.5,3.2078]
[1756519212214,3.2078,4263.2,4263.0,2.70671028]
[1756519212407,3.2078,4263.3,4262.9,0.45]
[1756519212613,3.2078,4263.3,4263.0,3.15671028]
[1756519212905,3.2078,4263.3,4263.2,2.70671028]
[1756519213107,5.6739,4263.3,4263.2,0.32457486]
[1756519213404,0.42214,4263.2,4261.9,3.6568]
[1756519213607,0.42214,4263.2,4262.0,1.2346478]
[1756519213809,6.09603,4263.3,4262.1,0.3246478]
[1756519214007,3.2078,4263.3,4262.2,0.3246478]
[1756519214306,3.2078,4263.3,4263.2,2.70671028]
[1756519214512,5.6739,4263.3,4263.2,0.448]
[1756519214706,5.6739,4263.3,4262.0,0.91]
[1756519214907,2.4661,4262.3,4262.1,0.31736417]
[1756519215107,3.62997,4262.8,4262.2,2.70671028]
[1756519215500,3.62997,4262.8,4262.2,0.447]
[1756519215702,3.2078,4263.7,4262.7,2.70671028]
[1756519215912,10.54767,4265.6,4262.7,2.70671028]
[1756519215913,2.4661,4264.5,4263.6,3.2078]
[1756519216107,2.4661,4264.5,4262.8,4.0]
[1756519216108,0.422,4264.5,4264.1,2.70671028]
[1756519216407,3.2078,4264.2,4263.7,0.447]
[1756519216604,2.4661,4264.0,4263.9,2.70671028]
[1756519216810,3.2078,4264.2,4263.9,3.02437919]
[1756519217010,3.2078,4264.2,4264.0,0.31766877]
[1756519217206,2.4661,4264.1,4263.8,2.70671028]
[1756519217508,2.4661,4264.1,4263.9,3.02456289]
[1756519217810,3.62983,4264.2,4263.9,2.70671028]
[1756519218309,2.4661,4264.1,4263.9,2.70671028]
[1756519218613,3.62983,4264.2,4263.7,0.444]
[1756519218614,2.88817,4263.8,4263.7,0.444]
[1756519218909,2.88817,4263.8,4263.7,0.31502115]
[1756519219208,2.88817,4263.8,4263.0,0.444]
[1756519219209,2.4661,4263.8,4263.0,0.444]
[1756519219409,3.2078,4263.2,4263.0,0.3146]
[1756519219613,3.62993,4263.2,4263.0,0.442]
[1756519219801,3.62993,4263.2,4262.6,33.773]
[1756519219802,3.2078,4263.2,4262.6,33.773]
[1756519220008,0.42211,4263.4,4263.1,2.70671028]
[1756519220217,0.42209,4263.7,4263.2,0.442]
[1756519220410,0.42211,4263.5,4263.2,0.442]
[1756519220611,2.4661,4264.1,4263.2,0.442]
[1756519220612,2.4661,4265.5,4263.3,4.0]
[1756519220910,5.6739,4265.5,4263.3,3.08090324]
[1756519221212,3.2078,4264.5,4262.6,33.773]
[1756519221411,2.4661,4264.4,4262.7,0.441]
[1756519222416,2.4661,4263.9,4262.8,0.44]
[1756519222910,2.4661,4263.9,4261.9,0.42225]
[1756519222911,2.4661,4262.7,4258.6,0.00389233]
[1756519223120,38.217,4263.8,4258.6,0.00389233]
[1756519223121,3.2078,4259.2,4258.6,0.00389233]
[1756519223418,3.2078,4258.7,4258.6,0.44989233]
[1756519223614,3.2078,4259.2,4258.6,2.94699233]
[1756519224119,3.2078,4259.2,4259.1,0.6883]
[1756519224310,3.2078,4259.2,4259.1,7.1854]
[1756519224613,3.2078,4261.7,4259.2,2.4971]
[1756519224808,2.4661,4261.5,4259.6,5.7049]
[1756519225004,2.4661,4261.1,4259.6,2.4971]
[1756519225214,35.35313216,4265.5,4260.2,2.4971]
[1756519225215,0.27434346,4261.0,4260.2,2.4971]
[1756519225416,0.27434346,4260.9,4260.7,3.2078]
[1756519225620,1.1719301,4264.9,4259.3,33.785]
[1756519225621,3.2078,4262.4,4261.5,2.4971]
[1756519225811,3.2078,4263.2,4262.4,2.4971]
[1756519226113,3.2078,4263.2,4262.5,0.443]
[1756519226314,3.2078,4263.2,4261.9,2.4971]
[1756519226315,3.2078,4263.2,4262.6,0.443]
[1756519226818,3.2078,4263.2,4262.6,2.9401]
[1756519227011,3.2078,4264.2,4262.7,2.4971]
[1756519227211,3.2078,4264.2,4262.8,0.442]
[1756519227608,3.2078,4263.6,4262.9,5.52773803]
[1756519227810,3.2078,4264.8,4263.5,3.2078]
[1756519228018,5.6739,4265.3,4264.2,3.2078]
[1756519228222,0.42193,4265.2,4264.3,0.441]
[1756519228817,5.6739,4265.3,4264.3,0.441]
[1756519229212,5.6739,4265.3,4263.6,33.787]
[1756519229612,0.42204,4264.2,4263.7,0.439]
[1756519229813,0.42205,4264.0,4263.7,0.439]
[1756519230323,0.1171,4264.1,4263.7,0.439]
[1756519230519,2.4661,4264.0,4263.7,0.439]
[1756519230919,0.1171,4264.1,4263.8,2.4971]
[1756519231719,0.1171,4264.1,4264.0,0.42205]
[1756519231915,3.2078,4265.0,4264.5,0.422]
[1756519232116,3.2078,4265.0,4264.7,2.4971]
[1756519232424,3.2078,4265.0,4264.7,0.42198]
[1756519232615,3.2078,4265.6,4264.9,0.42196]
[1756519232815,3.2078,4265.6,4264.8,5.7049]
[1756519233015,1.05417,4268.0,4263.4,10.55283]
[1756519233016,3.2078,4266.5,4265.3,3.2078]
[1756519233220,2.4661,4267.4,4265.6,3.62969]
[1756519233420,2.4661,4267.4,4266.1,3.2078]
[1756519233617,2.4661,4267.4,4266.2,0.435]
[1756519233819,0.42173,4267.3,4266.2,0.435]
[1756519234222,3.2078,4266.9,4266.2,0.435]
[1756519234423,2.4661,4266.8,4266.2,0.435]
[1756519234620,2.4661,4266.4,4266.2,0.435]
[1756519234821,2.4661,4266.4,4264.7,0.42198]